{"text_format":"3","workbook":"xlsx","n_sheets":2,"sheets":["רשימת המורה"," נתוני הרשימה"],"not_rendered":{"defined_names":6},"read":"whole","date_system":"1900"}

{"sheet":"רשימת המורה","index":0,"n_rows":10,"n_cols":10,"rows_kept":10,"merged":[[0,1,0,2],[0,4,0,8],[2,9,6,9]]}
[null,"רשימת המורה",null,"נתוני הרשימה","מקרא צבעים עבור מצבים מופיע בתא זה: 'לא התחילה' בסגנון רגיל, 'בביצוע' הוא ‎R=91 G=133 B=49‎, 'תאריך היעד' הוא ‎R=118 G=88 B=0‎, 'בהמתנה' הוא ‎R=109 G=66 B=111‎, 'הושלם' הוא קו חוצה, 'מבוטל' הוא ‎R=191 G=191 B=191‎ ו'תאריך היעד חלף' הוא ‎R=191 G=33 B=28‎."]
[null,"פריט","קטגוריה","תאריך התחלה","תאריך יעד","ימים שנותרו","מצב","הערות"]
[null,"לנקות מגירות","משרד",{"$f":"DATE(YEAR(TODAY()),MONTH(TODAY())-1,6)","v":"2018-04-06"},{"$f":"DATE(YEAR(TODAY()),MONTH(TODAY())-1,16)","v":"2018-04-16"},{"$f":"IFERROR(IF(COUNT(רשימה[[#This Row],[תאריך התחלה]]:רשימה[[#This Row],[תאריך יעד]])<>2,\"\",IF(OR(רשימה[[#This Row],[מצב]]=\"הושלם\",רשימה[[#This Row],[מצב]]=\"מבוטל\",רשימה[[#This Row],[מצב]]=\"בהמתנה\"),\"\",רשימה[[#This Row],[תאריך יעד]]-TODAY())),\"\")","v":""},"הושלם",null,null,"כלי הפריסה של המצב מופיע בתא זה. כדי לסנן את הרשימה לפי 'מצב', בחר מצב מכלי הפריסה. לחץ והחזק את מקש CTRL לחוץ כדי לבחור אפשרויות מרובות."]
[null,"להזמין מדבקות","ציוד",{"$f":"DATE(YEAR(TODAY()),MONTH(TODAY())-1,11)","v":"2018-04-11"},{"$f":"DATE(YEAR(TODAY()),MONTH(TODAY())-1,21)","v":"2018-04-21"},{"$f":"IFERROR(IF(COUNT(רשימה[[#This Row],[תאריך התחלה]]:רשימה[[#This Row],[תאריך יעד]])<>2,\"\",IF(OR(רשימה[[#This Row],[מצב]]=\"הושלם\",רשימה[[#This Row],[מצב]]=\"מבוטל\",רשימה[[#This Row],[מצב]]=\"בהמתנה\"),\"\",רשימה[[#This Row],[תאריך יעד]]-TODAY())),\"\")","v":""},"הושלם"]
[null,"לנקות את הקומות ולמרוח שעווה","אחר",{"$f":"DATE(YEAR(TODAY()),MONTH(TODAY()-1),DAY(TODAY())-25)","v":"2018-04-14"},{"$f":"DATE(YEAR(TODAY()),MONTH(TODAY())-1,26)","v":"2018-04-26"},{"$f":"IFERROR(IF(COUNT(רשימה[[#This Row],[תאריך התחלה]]:רשימה[[#This Row],[תאריך יעד]])<>2,\"\",IF(OR(רשימה[[#This Row],[מצב]]=\"הושלם\",רשימה[[#This Row],[מצב]]=\"מבוטל\",רשימה[[#This Row],[מצב]]=\"בהמתנה\"),\"\",רשימה[[#This Row],[תאריך יעד]]-TODAY())),\"\")","v":""},"הושלם"]
[null,"תוויות שם נוצרו","ציוד",{"$f":"DATE(YEAR(TODAY()),MONTH(TODAY())-1,21)","v":"2018-04-21"},{"$f":"DATE(YEAR(TODAY()),MONTH(TODAY())-1,1)","v":"2018-04-01"},{"$f":"IFERROR(IF(COUNT(רשימה[[#This Row],[תאריך התחלה]]:רשימה[[#This Row],[תאריך יעד]])<>2,\"\",IF(OR(רשימה[[#This Row],[מצב]]=\"הושלם\",רשימה[[#This Row],[מצב]]=\"מבוטל\",רשימה[[#This Row],[מצב]]=\"בהמתנה\"),\"\",רשימה[[#This Row],[תאריך יעד]]-TODAY())),\"\")","v":""},"בהמתנה"]
[null,"להעניק ציון - דוחות כתיבה רבעוניים","הערכות",{"$f":"DATE(YEAR(TODAY()),MONTH(TODAY())-1,26)","v":"2018-04-26"},{"$f":"TODAY()-5","v":"2018-05-04"},{"$f":"IFERROR(IF(COUNT(רשימה[[#This Row],[תאריך התחלה]]:רשימה[[#This Row],[תאריך יעד]])<>2,\"\",IF(OR(רשימה[[#This Row],[מצב]]=\"הושלם\",רשימה[[#This Row],[מצב]]=\"מבוטל\",רשימה[[#This Row],[מצב]]=\"בהמתנה\"),\"\",רשימה[[#This Row],[תאריך יעד]]-TODAY())),\"\")","v":-5},"תאריך היעד חלף"]
[null,"תזכורת דואר אלקטרוני לאישורים","שיחות טלפון",{"$f":"DATE(YEAR(TODAY()),MONTH(TODAY()),1)","v":"2018-05-01"},{"$f":"TODAY()","v":"2018-05-09"},{"$f":"IFERROR(IF(COUNT(רשימה[[#This Row],[תאריך התחלה]]:רשימה[[#This Row],[תאריך יעד]])<>2,\"\",IF(OR(רשימה[[#This Row],[מצב]]=\"הושלם\",רשימה[[#This Row],[מצב]]=\"מבוטל\",רשימה[[#This Row],[מצב]]=\"בהמתנה\"),\"\",רשימה[[#This Row],[תאריך יעד]]-TODAY())),\"\")","v":""},"מבוטל"]
[null,"להעניק ציון - דוחות בעל-פה","משרד",{"$f":"DATE(YEAR(TODAY()),MONTH(TODAY()),7)","v":"2018-05-07"},{"$f":"DATE(YEAR(TODAY()),MONTH(TODAY()),17)","v":"2018-05-17"},{"$f":"IFERROR(IF(COUNT(רשימה[[#This Row],[תאריך התחלה]]:רשימה[[#This Row],[תאריך יעד]])<>2,\"\",IF(OR(רשימה[[#This Row],[מצב]]=\"הושלם\",רשימה[[#This Row],[מצב]]=\"מבוטל\",רשימה[[#This Row],[מצב]]=\"בהמתנה\"),\"\",רשימה[[#This Row],[תאריך יעד]]-TODAY())),\"\")","v":8},"בביצוע"]
[null,"לחדד עפרונות","ציוד",{"$f":"DATE(YEAR(TODAY()),MONTH(TODAY()),11)","v":"2018-05-11"},{"$f":"DATE(YEAR(TODAY()),MONTH(TODAY()),10)","v":"2018-05-10"},{"$f":"IFERROR(IF(COUNT(רשימה[[#This Row],[תאריך התחלה]]:רשימה[[#This Row],[תאריך יעד]])<>2,\"\",IF(OR(רשימה[[#This Row],[מצב]]=\"הושלם\",רשימה[[#This Row],[מצב]]=\"מבוטל\",רשימה[[#This Row],[מצב]]=\"בהמתנה\"),\"\",רשימה[[#This Row],[תאריך יעד]]-TODAY())),\"\")","v":1},"בביצוע"]

{"sheet":" נתוני הרשימה","index":1,"n_rows":13,"n_cols":4,"rows_kept":13,"merged":[[0,1,0,2]]}
[null,"נתוני הרשימה",null,"רשימת המורה"]
[null,"קטגוריה"]
[null,"משרד"]
[null,"ציוד"]
[null,"פריטים שצריך לקנות"]
[null,"שיחות טלפון"]
[null,"רעיונות חדשים"]
[null,"הערכות"]
[null,"צוות"]
[null,"התערבויות"]
[null,"מחשב"]
[null,"אישי"]
[null,"אחר"]